fUSD/lending_fUSD_20240904
["ID","MTS","AMOUNT","RATE_DAILY","PERIOD"]
[337102222,1725427848267,-500.0,0.00014569,2]
[337102223,1725427848276,-500.0,0.00014569,2]
[337102224,1725427848285,-638.26,0.00014569,2]
[337102225,1725427848294,-638.26,0.00014569,2]
[337102226,1725427848304,-500.0,0.00014569,2]
[337102227,1725427848313,-500.0,0.00014569,2]
[337102228,1725427848322,-500.0,0.00014569,2]
[337102229,1725427848331,-663.64,0.00014569,2]
[337102230,1725427848341,-663.64,0.00014569,2]
[337102231,1725427848350,-500.0,0.00014569,2]
[337102232,1725427848359,-500.0,0.00014569,2]
[337102233,1725427848368,-500.0,0.00014569,2]
[337102234,1725427848377,-500.0,0.00014569,2]
[337102235,1725427848386,-500.0,0.00014569,2]
[337102236,1725427848395,-500.0,0.00014569,2]
[337102237,1725427848405,-500.0,0.00014569,2]
[337102238,1725427848414,-500.80565407,0.00014569,2]
[337102239,1725427848423,-407.44092504,0.00014569,2]
[337102240,1725427848432,-824.11,0.00014569,2]
[337102241,1725427848441,-500.0,0.00014569,2]
[337102242,1725427848450,-500.0,0.00014569,2]
[337102243,1725427848459,-500.0,0.00014569,2]
[337102244,1725427848468,-634.74,0.00014569,2]
[337102245,1725427848477,-634.74,0.00014569,2]
[337102246,1725427848486,-500.0,0.00014569,2]
[337102247,1725427848495,-500.0,0.00014569,2]
[337102248,1725427848504,-500.27657224,0.00014569,2]
[337102249,1725427848513,-500.0,0.00014569,2]
[337102250,1725427848522,-500.0,0.00014569,2]
[337102251,1725427848532,-500.0,0.00014569,2]
[337102252,1725427848541,-500.0,0.00014569,2]
[337102253,1725427848550,-500.0,0.00014569,2]
[337102254,1725427848559,-500.0,0.00014569,2]
[337102255,1725427848569,-500.0,0.00014569,2]
[337102256,1725427848578,-500.0,0.00014569,2]
[337102257,1725427848587,-500.0,0.00014569,2]
[337102258,1725427848596,-500.0,0.00014569,2]
[337102259,1725427848605,-500.0,0.00014569,2]
[337102260,1725427848614,-500.0,0.00014569,2]
[337102261,1725427848624,-500.0,0.00014569,2]
[337102262,1725427848634,-500.0,0.00014569,2]
[337102263,1725427848646,-500.0,0.00014569,2]
[337102264,1725427848656,-502.4827969,0.00014569,2]
[337102265,1725427848665,-500.0,0.00014569,2]
[337102266,1725427848675,-500.0,0.00014569,2]
[337102267,1725427848686,-500.0,0.00014569,2]
[337102268,1725427848695,-1175.44,0.00014569,2]
[337102269,1725427848704,-500.0,0.00014569,2]
[337102270,1725427848713,-622.08,0.00014569,2]
[337102271,1725427848723,-500.0,0.00014569,2]
[337102272,1725427848732,-500.0,0.00014569,2]
[337102273,1725427848742,-500.0,0.00014569,2]
[337102274,1725427848751,-500.0,0.00014569,2]
[337102275,1725427848965,-500.0,0.00014569,2]
[337102276,1725427848975,-500.0,0.00014569,2]
[337102277,1725427848984,-500.0,0.00014569,2]
[337102278,1725427848993,-500.0,0.00014569,2]
[337102279,1725427849002,-151.80024899,0.00014569,2]
[337102280,1725427849011,-500.0,0.00014569,2]
[337102281,1725427849020,-500.0,0.00014569,2]
[337102282,1725427849030,-500.0,0.00014569,2]
[337102283,1725427849039,-573.41,0.00014569,2]
[337102284,1725427849048,-573.41,0.00014569,2]
[337102285,1725427849057,-756.87,0.00014569,2]
[337102286,1725427849066,-500.0,0.00014569,2]
[337102287,1725427849075,-500.0,0.00014569,2]
[337102288,1725427849085,-500.0,0.00014569,2]
[337102289,1725427849094,-636.99,0.00014569,2]
[337102290,1725427849103,-636.99,0.00014569,2]
[337102291,1725427849112,-636.99,0.00014569,2]
[337102292,1725427849122,-500.0,0.00014569,2]
[337102293,1725427849131,-500.0,0.00014569,2]
[337102294,1725427849142,-500.0,0.00014569,2]
[337102295,1725427849151,-500.0,0.00014569,2]
[337102296,1725427849160,-500.0,0.00014569,2]
[337102297,1725427849169,-500.0,0.00014569,2]
[337102298,1725427849179,-152.41055607,0.00014569,2]
[337102299,1725427849187,-500.41597737,0.00014569,2]
[337102300,1725427849197,-522.64,0.00014569,2]
[337102301,1725427849206,-522.64,0.00014569,2]
[337102302,1725427849215,-522.64,0.00014569,2]
[337102303,1725427849224,-500.0,0.00014569,2]
[337102304,1725427849234,-500.0,0.00014569,2]
[337102305,1725427849243,-500.0,0.00014569,2]
[337102306,1725427849252,-500.0,0.00014569,2]
[337102307,1725427849261,-500.0,0.00014569,2]
[337102308,1725427849270,-512.30787881,0.00014569,2]
[337102309,1725427849280,-500.0,0.00014569,2]
[337102310,1725427849289,-149.73095063,0.00014569,2]
[337102311,1725427849325,-350.26904937,0.00014569,2]
[337102312,1725427849334,-500.0,0.00014569,2]
[337102313,1725427849343,-457.28979195,0.00014569,2]
[337102314,1725427849354,-42.71020805,0.00014569,2]
[337102315,1725427849363,-500.0,0.00014569,2]
[337102316,1725427849372,-500.0,0.00014569,2]
[337102317,1725427849381,-500.0,0.00014569,2]
[337102318,1725427849396,-500.0,0.00014569,2]
[337102319,1725427849408,-500.0,0.00014569,2]
[337102320,1725427849417,-631.09,0.00014569,2]
[337102321,1725427849426,-631.09,0.00014569,2]
[337102322,1725427849435,-500.0,0.00014569,2]
[337102323,1725427849444,-500.0,0.00014569,2]
[337102324,1725427849453,-302.24006247,0.00014569,2]
[337102325,1725427849462,-500.0,0.00014569,2]
[337102326,1725427849471,-19.39356248,0.00014569,2]
[337102327,1725427849483,-480.60643752,0.00014569,2]
[337102328,1725427849492,-226.78336408,0.00014569,2]
[337102329,1725427849504,-273.21663592,0.00014569,2]
[337102330,1725427849513,-500.0,0.00014569,2]
[337102331,1725427849522,-360.54336408,0.00014569,2]
[337102332,1725427849534,-344.54663592,0.00014569,2]
[337102333,1725427849543,-241.69555819,0.00014569,2]
[337102334,1725427849554,-258.30444181,0.00014569,2]
[337102335,1725427849563,-500.0,0.00014569,2]
[337102336,1725427849573,-500.0,0.00014569,2]
[337102337,1725427849582,-643.59,0.00014569,2]
[337102338,1725427849591,-224.98055419,0.00014569,2]
[337102339,1725427849603,-418.60944581,0.00014569,2]
[337102340,1725427849611,-348.39755511,0.00014569,2]
[337102341,1725427849623,-151.60244489,0.00014569,2]
[337102342,1725427849632,-500.0,0.00014569,2]
[337102343,1725427849648,-500.0,0.00014569,2]
[337102344,1725427849657,-237.21836782,0.00014569,2]
[337102345,1725427849668,-262.78163218,0.00014569,2]
[337102346,1725427849678,-503.15318053,0.00014569,2]
[337102347,1725427849688,-216.23630269,0.00014569,2]
[337102348,1725427849697,-500.0,0.00014569,2]
[337102349,1725427849706,-250.71130507,0.00014569,2]
[337102350,1725427849720,-285.86869493,0.00014569,2]
[337102351,1725427849729,-318.20932703,0.00014569,2]
[337102352,1725427849740,-181.79067297,0.00014569,2]
[337102353,1725427849749,-500.0,0.00014569,2]
[337102354,1725427849758,-500.0,0.00014569,2]
[337102355,1725427849768,-1037.02,0.00014569,2]
[337102356,1725427849777,-202.78932703,0.00014569,2]
[337102357,1725427849789,-834.23067297,0.00014569,2]
[337102358,1725427849798,-500.0,0.00014569,2]
[337102359,1725427849808,-500.0,0.00014569,2]
[337102360,1725427849817,-640.88,0.00014569,2]
[337102361,1725427849826,-604.88927703,0.00014569,2]
[337102362,1725427849837,-35.99072297,0.00014569,2]
[337102363,1725427849847,-260.14371038,0.00014569,2]
[337102364,1725427849859,-430.65367495,0.00014569,2]
[337102365,1725427849894,-566.7,0.00014523,2]
[337102366,1725427860752,192.22,0.00011662,2]
[337102367,1725427865607,250.0,0.00013,2]
[337102368,1725427873913,250.0,0.00013,2]
[337102369,1725427879837,250.0,0.00013,2]
[337102370,1725427981996,750.0,0.000102,5]
[337102373,1725428483484,182.6,0.00011577,2]
[337102391,1725429028061,173.47,0.00011571,2]
[337102401,1725429031906,-250.0,0.00013472,2]
[337102402,1725429031916,-879.72,0.00013485,2]
[337102403,1725429031927,-4680.66,0.00013485,2]
[337102404,1725429031937,-300.0,0.00013488,2]
[337102405,1725429031946,-4203.83,0.00013489,2]
[337102406,1725429031956,-177.54,0.000135,2]
[337102407,1725429031966,-225.0,0.000135,2]
[337102408,1725429031975,-154.85,0.00013509,2]
[337102409,1725429031984,-42.24841718,0.00013521,2]
[337102410,1725429032024,-147.75158282,0.00013521,2]
[337102411,1725429032034,-1000.0,0.0001354,2]
[337102412,1725429032043,-652.40375229,0.00013699,2]
[337102413,1725429032055,-1193.2094491,0.00013699,2]
[337102414,1725429032087,-905.38679861,0.00013699,2]
[337102415,1725429032097,-173.47,0.00013835,2]
[337102416,1725429032107,-211.0,0.0001422,2]
[337102417,1725429032117,-799.03305841,0.0001422,2]
[337102418,1725429032128,-2587.71929825,0.0001422,2]
[337102421,1725429038184,-557.63764334,0.0001422,2]
[337102422,1725429038193,-150.99,0.0001422,2]
[337102423,1725429038203,-499.99,0.0001422,2]
[337102424,1725429038212,-201.0,0.0001435,2]
[337102425,1725429038221,-211.0,0.0001435,2]
[337102426,1725429038230,-1711.87,0.0001435,2]
[337102427,1725429038240,-152.0,0.00014388,3]
[337102428,1725429038250,-150.0,0.00014448,2]
[337102429,1725429038259,-150.0,0.00014448,2]
[337102430,1725429038268,-150.0,0.00014448,2]
[337102431,1725429038279,-150.0,0.00014448,2]
[337102432,1725429038289,-150.0,0.00014448,2]
[337102433,1725429038298,-2094.76716338,0.0001446,2]
[337102434,1725429038308,-162.09702614,0.00014469,2]
[337102435,1725429038317,-152.59925876,0.0001447,2]
[337102436,1725429038327,-560.19256756,0.0001447,2]
[337102437,1725429038338,-206.7960771,0.00014471,2]
[337102438,1725429038347,-150.0,0.00014479,2]
[337102440,1725429038357,-433.461,0.0001448,2]
[337102441,1725429038366,-1260.0,0.0001448,2]
[337102442,1725429038375,-1546.0,0.0001448,2]
[337102443,1725429038385,-624.0,0.0001448,2]
[337102444,1725429038394,-556.144,0.0001448,2]
[337102445,1725429038404,-810.0,0.0001448,2]
[337102446,1725429038413,-931.0,0.0001448,2]
[337102447,1725429038422,-1899.0,0.0001448,2]
[337102448,1725429038432,-552.0,0.0001448,2]
[337102449,1725429038441,-248.0,0.0001448,2]
[337102450,1725429038450,-1134.0,0.0001448,2]
[337102451,1725429038459,-805.0,0.0001448,2]
[337102452,1725429038468,-3341.0,0.0001448,2]
[337102453,1725429038478,-1922.0,0.0001448,2]
[337102454,1725429038487,-1144.0,0.0001448,2]
[337102455,1725429038496,-150.0,0.0001448,2]
[337102456,1725429038506,-13467.0,0.0001448,2]
[337102457,1725429038515,-5855.0,0.0001448,2]
[337102458,1725429038526,-3733.0,0.0001448,2]
[337102459,1725429038536,-150.656,0.0001448,2]
[337102461,1725429038545,-151.0,0.0001448,2]
[337102462,1725429038555,-201.0,0.0001448,2]
[337102463,1725429038564,-211.0,0.0001448,2]
[337102465,1725429038573,-1080.92765061,0.000145,2]
[337102466,1725429038583,-150.0,0.000145,2]
[337102468,1725429038593,-2094.76716331,0.00014509,2]
[337102470,1725429038602,-796.4,0.00014549,3]
[337102472,1725429038611,-2094.76716331,0.00014558,2]
[337102474,1725429038621,-1512.61205008,0.00014558,2]
[337102475,1725429038630,-169.32523639,0.00014558,2]
[337102476,1725429038651,-330.67476361,0.00014558,2]
[337102477,1725429038660,-539.36646961,0.00014558,2]
[337102478,1725429038670,-215.56,0.00014559,2]
[337102479,1725429038679,-500.0,0.00014559,2]
[337102480,1725429038690,-500.82955762,0.00014559,2]
[337102481,1725429038699,-2379.07393397,0.00014559,2]
[337102482,1725429038711,-5665.36777419,0.00014559,2]
[337102535,1725429040038,-14136.64965987,0.00014559,2]
[337102536,1725429040049,-353.541405,0.00014559,2]
[337102537,1725429040320,-5657.04767391,0.00014559,2]
[337102547,1725429043166,-1078.0,0.0001448,2]
[337102548,1725429043176,-4577.5,0.00014559,2]
[337102557,1725429046227,-1190.575,0.00014559,2]
[337102558,1725429046238,-576.63355649,0.00014559,2]
[337102562,1725429259938,550.0,0.00011,2]
[337102563,1725429261072,600.0,0.00013,2]
[337102564,1725429380648,219.38,0.00010959,2]
[337102565,1725429697645,166.92,0.00011584,2]
[337102566,1725429791561,500.0,0.00012,2]
[337102567,1725429809278,500.0,0.00013,4]
[337102568,1725429837232,500.0,0.00013,2]
[337102569,1725429851263,500.0,0.00013,2]
[337102570,1725429854376,155.9,0.00010959,2]
[337102576,1725429964556,500.0,0.00013,2]
[337102577,1725429977698,-190.01,0.0001347,2]
[337102578,1725429977719,-3300.5,0.00013478,2]
[337102579,1725429977750,-236.96,0.00013489,2]
[337102580,1725429977771,-250.0,0.00013492,2]
[337102581,1725429977792,-250.0,0.00013495,2]
[337102582,1725429977815,-217.47,0.0001354,2]
[337102583,1725429977837,-1000.0,0.00013557,2]
[337102584,1725429977858,-166.92,0.00013848,2]
[337102585,1725429981197,870.18,0.00013,2]
[337102591,1725430084332,289.75,0.00013699,2]
[337102592,1725430129302,500.0,0.00013,2]
[337102593,1725430142558,500.0,0.00013,2]
[337102597,1725430184367,150.22,0.00011592,2]
[337102598,1725430184590,150.22,0.00013856,2]
[337102604,1725430232308,-3341.0,0.00014138,2]
[337102605,1725430232318,-152.36,0.00014238,2]
[337102606,1725430232327,-239.189359,0.00014246,2]
[337102607,1725430232336,-37.12875318,0.0001429,7]
[337102615,1725430238390,-224.05579854,0.0001429,7]
[337102616,1725430238400,-744.3346241,0.00014365,2]
[337102617,1725430238412,-250.71769005,0.00014365,2]
[337102660,1725430240436,-2737.94768585,0.00014365,2]
[337102661,1725430240448,-799.15851147,0.00014365,2]
[337102663,1725430243411,-282.50222,0.00014365,2]
[337102703,1725430252070,250.0,0.0001352,2]
[337102704,1725430271885,1000.0,0.00013525,2]
[337102705,1725430317052,242.95,0.0001353,2]
[337102706,1725430346292,200.0,0.000135,2]
[337102707,1725430378313,430.94,0.00013524,2]
[337102708,1725430512556,203.74,0.0001352,2]
[337102709,1725430752563,250.0,0.00013526,2]
[337102710,1725430752756,250.0,0.00013526,2]
[337102711,1725430860312,242.95,0.00013538,2]
[337102712,1725430886316,357.19,0.00013538,2]
[337102713,1725430987821,152.55,0.00011594,2]
[337102737,1725431432300,-250.0,0.00013476,2]
[337102738,1725431432309,-178.59,0.00013476,2]
[337102739,1725431432318,-72.13002864,0.000135,2]
[337102749,1725431438405,-11148.03884235,0.000135,2]
[337102750,1725431438414,-321.25,0.00013512,2]
[337102751,1725431438423,-642.81,0.00013538,2]
[337102752,1725431438433,-152.55,0.00013984,2]
[337102753,1725431438442,-210.0,0.0001409,2]
[337102754,1725431438453,-210.0,0.0001422,2]
[337102755,1725431438462,-150.0,0.00014348,2]
[337102756,1725431438472,-150.0,0.00014348,2]
[337102757,1725431438481,-150.0,0.00014348,2]
[337102758,1725431438490,-150.0,0.00014348,2]
[337102759,1725431438500,-210.0,0.0001435,2]
[337102760,1725431438509,-1984.68048,0.00014365,2]
[337102761,1725431438519,-152.0,0.00014388,3]
[337102762,1725431438529,-150.0,0.00014399,2]
[337102763,1725431438543,-23832.6568,0.000144,2]
[337102764,1725431438552,-162.09702614,0.000144,2]
[337102765,1725431438562,-1958.5037,0.000144,2]
[337102766,1725431438571,-1466.33701438,0.000144,2]
[337102767,1725431438580,-552.0,0.00014416,2]
[337102768,1725431438590,-1899.0,0.00014416,2]
[337102769,1725431438599,-3341.0,0.00014416,2]
[337102770,1725431438608,-1134.0,0.00014416,2]
[337102771,1725431438618,-805.0,0.00014416,2]
[337102772,1725431438627,-1922.0,0.00014416,2]
[337102773,1725431438636,-248.0,0.00014416,2]
[337102774,1725431438645,-1078.0,0.00014416,2]
[337102775,1725431438655,-1543.0,0.00014416,2]
[337102776,1725431438665,-1256.0,0.00014416,2]
[337102777,1725431438674,-150.0,0.00014416,2]
[337102778,1725431438683,-624.0,0.00014416,2]
[337102779,1725431438693,-2931.396,0.00014416,2]
[337102780,1725431438702,-991.731,0.00014416,2]
[337102781,1725431438711,-150.0,0.00014448,2]
[337102782,1725431438721,-150.0,0.00014448,2]
[337102784,1725431438730,-150.0,0.00014448,2]
[337102786,1725431438741,-150.0,0.00014448,2]
[337102788,1725431438752,-150.0,0.00014448,2]
[337102790,1725431438762,-1466.33701431,0.00014456,2]
[337102792,1725431438771,-150.39,0.00014465,2]
[337102793,1725431438780,-152.59925876,0.00014467,2]
[337102795,1725431438790,-448.15405404,0.00014469,2]
[337102797,1725431438799,-152.13,0.0001448,2]
[337102799,1725431438808,-150.309,0.0001448,2]
[337102801,1725431438819,-200.0,0.0001448,2]
[337102803,1725431438828,-163.0,0.0001448,2]
[337102805,1725431438838,-164.541,0.0001448,2]
[337102807,1725431438846,-209.076,0.0001448,2]
[337102809,1725431438856,-155.826,0.0001448,2]
[337102811,1725431438865,-150.0,0.0001448,2]
[337102812,1725431438875,-150.0,0.0001448,2]
[337102813,1725431438884,-150.117,0.0001448,2]
[337102814,1725431438894,-210.0,0.0001448,2]
[337102815,1725431438904,-1736.262,0.0001449,2]
[337102816,1725431438913,-53591.8677766,0.0001449,2]
[337102817,1725431438922,-376.45,0.0001449,3]
[337102818,1725431438933,-313.71,0.0001449,3]
[337102819,1725431438942,-305.81,0.0001449,3]
[337102820,1725431438952,-500.0,0.00014499,2]
[337102821,1725431438962,-500.0,0.00014499,2]
[337102822,1725431438971,-186.34067264,0.00014499,2]
[337102823,1725431438981,-211.15575614,0.00014499,2]
[337102824,1725431438991,-193.36671396,0.00014499,2]
[337102825,1725431439000,-500.0,0.00014499,2]
[337102826,1725431439010,-542.72916773,0.00014499,2]
[337102827,1725431439020,-500.0,0.00014499,2]
[337102828,1725431439033,-310.77897367,0.00014499,2]
[337102830,1725431439042,-500.0,0.00014499,2]
[337102832,1725431439052,-500.0,0.00014499,2]
[337102833,1725431439061,-500.0,0.00014499,2]
[337102835,1725431439071,-500.0,0.00014499,2]
[337102837,1725431439080,-326.6679843,0.00014499,2]
[337102839,1725431439089,-180.12905438,0.00014499,2]
[337102841,1725431439098,-665.95,0.00014499,2]
[337102843,1725431439108,-500.0,0.00014499,2]
[337102845,1725431439117,-214.04081927,0.00014499,2]
[337102860,1725431439314,-206.58,0.00014499,2]
[337102861,1725431439404,-500.0,0.00014499,2]
[337102862,1725431439414,-57498.55418222,0.000145,2]
[337102863,1725431439426,-1284.29519862,0.000145,2]
[337102864,1725431439438,-2245.1657659,0.000145,2]
[337102865,1725431439453,-1117.92172209,0.000145,2]
[337102866,1725431439464,-12555.07045443,0.000145,2]
[337102867,1725431439475,-7436.11401147,0.000145,2]
[337102868,1725431439486,-13565.0,0.000145,2]
[337102869,1725431439498,-24528.90035,0.000145,2]
[337102870,1725431439509,-26527.12144053,0.000145,2]
[337102881,1725431440395,-577.3,0.00014416,2]
[337102882,1725431440405,-4787.50107362,0.000145,2]
[337102884,1725431440479,-34930.83202675,0.000145,2]
[337102885,1725431440491,-74091.58206137,0.000145,2]
[337102886,1725431440633,-528.81468719,0.000145,2]
[337102909,1725431552446,154.89,0.00011589,2]
[337102910,1725431586728,150.0,0.00013003,2]
[337102911,1725431586749,150.0,0.00013003,2]
[337102912,1725431586770,150.0,0.00013003,2]
[337102913,1725431586794,150.0,0.00013003,2]
[337102914,1725431586815,150.0,0.00013003,2]
[337102915,1725431586836,150.0,0.00013003,2]
[337102916,1725431586857,104.33470632,0.00013003,2]
[337102917,1725431632329,1080.0,0.00013003,2]
[337102918,1725431725668,-170.42,0.00013504,2]
[337102919,1725431767954,-1113.88,0.00013698,2]
[337102922,1725432255602,208.41,0.00010959,2]
[337102923,1725432268641,1000.0,0.00013003,2]
[337102935,1725432444337,154.89,0.0001154,2]
[337102957,1725432631558,-150.0,0.00013093,2]
[337102958,1725432631568,-193.70030262,0.00013093,2]
[337102959,1725432631577,-150.00000001,0.00013093,2]
[337102960,1725432631587,-257.0,0.00013405,2]
[337102961,1725432631596,-2033.0,0.00013433,2]
[337102962,1725432631606,-178.6,0.00013434,2]
[337102963,1725432631616,-187.08,0.00013475,2]
[337102964,1725432631625,-964.28,0.00013497,2]
[337102965,1725432631635,-250.0,0.00013499,2]
[337102966,1725432631644,-150.0,0.00013698,2]
[337102967,1725432631654,-168.62,0.00013699,2]
[337102968,1725432631663,-500.0,0.00013699,2]
[337102969,1725432631673,-200.0,0.00013699,2]
[337102970,1725432631682,-2751.0,0.00013699,2]
[337102971,1725432631694,-3193.31157737,0.00013699,2]
[337102972,1725432631705,-294.15884645,0.00013699,2]
[337102973,1725432631720,-17819.5589451,0.00013699,2]
[337102976,1725432637626,-77.20529368,0.00013699,2]
[337102993,1725432638110,-12796.2553374,0.00013699,2]
[337102995,1725432638120,-212.24,0.00013699,2]
[337102997,1725432638129,-150.0,0.00013821,2]
[337102999,1725432638139,-201.813011,0.00013973,2]
[337103001,1725432638148,-2482.57,0.00013979,2]
[337103003,1725432638158,-150.99,0.00013979,2]
[337103005,1725432638167,-734.2,0.00013979,2]
[337103006,1725432638179,-150.99,0.00013979,2]
[337103008,1725432638189,-978.41,0.00013979,2]
[337103010,1725432638211,-154.89,0.0001407,2]
[337103012,1725432638221,-2941.49036749,0.0001407,2]
[337103014,1725432638232,-6743.24963251,0.0001407,2]
[337103016,1725432638241,-791.75,0.000141,2]
[337103018,1725432638250,-421.99,0.000141,2]
[337103020,1725432638260,-791.75,0.000141,2]
[337103022,1725432638270,-421.99,0.000141,2]
[337103024,1725432638279,-421.99,0.000141,2]
[337103026,1725432638288,-791.75,0.000141,2]
[337103028,1725432638298,-791.75,0.000141,2]
[337103030,1725432638307,-421.99,0.000141,2]
[337103032,1725432638317,-421.99,0.000141,2]
[337103034,1725432638326,-791.75,0.000141,2]
[337103036,1725432638335,-791.75,0.000141,2]
[337103038,1725432638344,-421.99,0.000141,2]
[337103040,1725432638353,-427.35,0.00014192,2]
[337103042,1725432638363,-150.0,0.00014192,2]
[337103044,1725432638372,-150.0,0.00014192,2]
[337103045,1725432638381,-532.2,0.00014192,2]
[337103047,1725432638390,-150.0,0.00014192,2]
[337103049,1725432638401,-150.0,0.00014192,2]
[337103051,1725432638412,-150.0,0.00014192,2]
[337103053,1725432638422,-357.33,0.00014192,2]
[337103055,1725432638432,-150.0,0.00014192,2]
[337103057,1725432638443,-427.35,0.00014192,2]
[337103059,1725432638453,-150.0,0.00014192,2]
[337103061,1725432638462,-150.0,0.00014192,2]
[337103063,1725432638471,-150.0,0.00014192,2]
[337103065,1725432638481,-150.0,0.00014192,2]
[337103067,1725432638490,-357.33,0.00014192,2]
[337103069,1725432638499,-532.2,0.00014192,2]
[337103070,1725432638510,-150.0,0.00014192,2]
[337103072,1725432638519,-150.0,0.00014192,2]
[337103074,1725432638528,-427.35,0.00014192,2]
[337103076,1725432638538,-150.0,0.00014192,2]
[337103078,1725432638547,-357.33,0.00014192,2]
[337103080,1725432638557,-150.0,0.00014192,2]
[337103082,1725432638566,-150.0,0.00014192,2]
[337103084,1725432638575,-150.0,0.00014192,2]
[337103086,1725432638585,-150.0,0.00014192,2]
[337103088,1725432638595,-532.2,0.00014192,2]
[337103090,1725432638605,-427.35,0.00014192,2]
[337103092,1725432638614,-150.0,0.00014192,2]
[337103094,1725432638623,-150.0,0.00014192,2]
[337103096,1725432638633,-150.0,0.00014192,2]
[337103098,1725432638643,-357.33,0.00014192,2]
[337103100,1725432638652,-532.2,0.00014192,2]
[337103102,1725432638661,-150.0,0.00014192,2]
[337103104,1725432638670,-150.0,0.00014192,2]
[337103106,1725432638679,-150.0,0.00014192,2]
[337103108,1725432638688,-328.97,0.00014192,2]
[337103110,1725432638698,-303.23,0.00014192,2]
[337103112,1725432638707,-357.33,0.00014192,2]
[337103114,1725432638717,-532.2,0.00014192,2]
[337103116,1725432638726,-150.0,0.00014192,2]
[337103118,1725432638736,-366.6,0.00014192,2]
[337103120,1725432638746,-862.95,0.00014192,2]
[337103122,1725432638755,-531.06,0.00014192,2]
[337103124,1725432638764,-854.5,0.00014192,2]
[337103125,1725432638773,-150.0,0.00014192,2]
[337103127,1725432638783,-150.0,0.00014192,2]
[337103129,1725432638793,-300.0,0.00014192,2]
[337103131,1725432638804,-150.0,0.00014192,2]
[337103133,1725432638813,-150.0,0.00014192,2]
[337103135,1725432638823,-357.33,0.00014192,2]
[337103137,1725432638832,-499.99,0.00014247,2]
[337103139,1725432638841,-150.99,0.00014247,2]
[337103141,1725432638852,-150.0,0.00014295,2]
[337103143,1725432638861,-150.0,0.00014295,2]
[337103145,1725432638871,-3230.21,0.00014295,2]
[337103147,1725432638880,-150.0,0.000143,2]
[337103174,1725432639156,-791.75,0.000143,2]
[337103176,1725432639175,-421.99,0.000143,2]
[337103178,1725432639185,-421.99,0.000143,2]
[337103180,1725432639195,-791.75,0.000143,2]
[337103182,1725432639204,-150.0,0.000143,2]
[337103184,1725432639214,-258.53,0.000143,2]
[337103186,1725432639223,-791.75,0.000143,2]
[337103188,1725432639233,-150.0,0.000143,2]
[337103190,1725432639243,-169.13,0.000143,2]
[337103192,1725432639252,-150.78,0.000143,2]
[337103194,1725432639262,-150.0,0.000143,2]
[337103196,1725432639271,-427.35,0.000143,2]
[337103198,1725432639281,-150.0,0.000143,2]
[337103200,1725432639291,-357.33,0.000143,2]
[337103202,1725432639302,-421.99,0.000143,2]
[337103204,1725432639312,-150.66,0.000143,2]
[337103206,1725432639324,-150.0,0.0001431,2]
[337103208,1725432639333,-1653.9004,0.0001435,2]